bitfinex-derivatives/quotes_BTCF0:USTF0_20250101
["timestamp","ask_amount","ask_price","bid_price","bid_amount"]
[1735723437279,0.12366246,93253.0,93246.0,0.36136]
[1735723437473,0.62366246,93253.0,93246.0,0.3638]
[1735723437673,0.5,93253.0,93251.0,0.053717]
[1735723437873,0.12340029,93252.0,93251.0,0.053717]
[1735723438269,0.12140029,93252.0,93251.0,0.053717]
[1735723438681,0.11709637,93253.0,93251.0,0.053717]
[1735723438878,0.001,93253.0,93251.0,0.053717]
[1735723439184,0.11609637,93252.0,93251.0,0.053717]
[1735723440176,0.11609637,93252.0,93251.0,0.055717]
[1735723440769,0.11709637,93252.0,93251.0,0.055717]
[1735723441183,0.001,93252.0,93251.0,0.055717]
[1735723441483,0.62486182,93252.0,93251.0,0.055717]
[1735723441783,0.12486182,93252.0,93251.0,0.055717]
[1735723442482,0.501,93252.0,93251.0,0.055717]
[1735723442680,0.001,93252.0,93251.0,0.055717]
[1735723444376,0.3608,93263.0,93251.0,0.055717]
[1735723444583,0.3608,93263.0,93262.0,0.053711]
[1735723444779,0.3608,93263.0,93251.0,0.002]
[1735723444984,0.3608,93254.0,93252.0,0.053717]
[1735723445384,0.3608,93263.0,93257.0,0.053714]
[1735723445784,0.1115278,93260.0,93257.0,0.053714]
[1735723445983,0.1115278,93262.0,93257.0,0.053714]
[1735723446285,0.3608,93263.0,93257.0,0.053714]
[1735723446478,0.1115278,93262.0,93257.0,0.053714]
[1735723447282,0.1115278,93262.0,93251.0,0.002]
[1735723447487,0.5,93260.0,93257.0,0.001]
[1735723447991,0.053713,93258.0,93257.0,0.001]
[1735723448288,0.053713,93258.0,93257.0,0.003]
[1735723448484,0.17685577,93258.0,93257.0,0.003]
[1735723448690,0.17685577,93258.0,93257.0,0.001]
[1735723448884,0.053716,93255.0,93246.0,0.3608]
[1735723449084,0.3608,93254.0,93246.0,0.3608]
[1735723449285,0.3608,93254.0,93232.0,0.3608]
[1735723449286,0.053722,93244.0,93232.0,0.3608]
[1735723449585,0.053722,93244.0,93230.0,0.00160904]
[1735723449586,0.11426946,93243.0,93241.0,0.053723]
[1735723449990,0.16799146,93243.0,93237.0,0.0329]
[1735723450192,0.11426946,93243.0,93237.0,0.0329]
[1735723450394,0.053723,93241.0,93237.0,0.0329]
[1735723450691,0.053727,93234.0,93230.0,0.00160904]
[1735723451080,0.11496988,93233.0,93230.0,0.00160904]
[1735723451588,0.053729,93232.0,93230.0,0.00160904]
[1735723451984,0.3608,93237.0,93200.0,0.5078]
[1735723451985,0.053732,93227.0,93219.0,0.053736]
[1735723452188,0.11871801,93231.0,93186.0,0.19224825]
[1735723452189,0.5,93222.0,93186.0,0.19224825]
[1735723452390,0.11049249,93210.0,93186.0,0.19224825]
[1735723452693,0.3608,93211.0,93196.0,0.3608]
[1735723452893,0.11894197,93209.0,93197.0,0.062]
[1735723453089,0.11894197,93209.0,93207.0,0.053743]
[1735723453308,0.053748,93199.0,93186.0,0.19224825]
[1735723453589,0.053752,93192.0,93186.0,0.19224825]
[1735723453791,0.11049249,93196.0,93186.0,0.007]
[1735723453996,0.17407499,93191.0,93186.0,0.007]
[1735723454196,0.053754,93187.0,93186.0,0.007]
[1735723454494,0.17407699,93187.0,93186.0,0.004]
[1735723454695,0.12032299,93187.0,93186.0,0.004]
[1735723454890,0.053751,93194.0,93186.0,0.004]
[1735723455289,0.12337923,93193.0,93186.0,0.004]
[1735723455496,0.053751,93194.0,93186.0,0.004]
[1735723455791,0.12017155,93193.0,93186.0,0.004]
[1735723455991,0.12017155,93193.0,93186.0,0.003]
[1735723456187,0.12017155,93193.0,93188.0,0.053753]
[1735723456382,0.12017155,93193.0,93186.0,0.003]
[1735723456687,0.001,93187.0,93186.0,0.053755]
[1735723456892,0.0626,93222.0,93186.0,0.053755]
[1735723456893,0.55374,93213.0,93186.0,0.003]
[1735723457086,0.5,93220.0,93211.0,0.05374]
[1735723457288,0.00148,93213.0,93211.0,0.05374]
[1735723457489,0.5,93220.0,93212.0,0.0315]
[1735723457890,0.50140001,93220.0,93212.0,0.0315]
[1735723458197,0.053741,93210.0,93201.0,0.053746]
[1735723458396,0.053741,93210.0,93202.0,0.0634]
[1735723458799,0.84412,93214.0,93206.0,0.053743]
[1735723459091,0.11968889,93209.0,93206.0,0.053743]
[1735723459298,0.12168889,93213.0,93206.0,0.053743]
[1735723459496,0.002,93213.0,93206.0,0.053743]
[1735723460095,0.84512,93214.0,93207.0,0.085342]
[1735723460294,0.414542,93209.0,93207.0,0.0316]
[1735723460492,0.3608,93209.0,93202.0,0.001]
[1735723460687,0.053745,93203.0,93202.0,0.001]
[1735723460887,0.053746,93201.0,93200.0,0.0316]
[1735723461292,0.053746,93201.0,93199.0,0.3608]
[1735723461293,0.17827647,93201.0,93199.0,0.3608]
[1735723461797,0.3608,93209.0,93199.0,0.3608]
[1735723462005,0.414542,93209.0,93200.0,0.053746]
[1735723462197,0.12015189,93208.0,93207.0,0.001]
[1735723464101,0.12015189,93208.0,93203.0,0.053745]
[1735723464300,0.12015189,93208.0,93205.0,0.053743]
[1735723464602,0.12388716,93210.0,93208.0,0.053742]
[1735723464901,0.48132,93214.0,93209.0,0.0304]
[1735723465402,0.11918066,93213.0,93209.0,0.0304]
[1735723465899,0.47998066,93213.0,93212.0,0.05374]
[1735723466206,0.48432,93214.0,93212.0,0.05374]
[1735723467004,0.003,93213.0,93211.0,0.05374]
[1735723467611,0.007,93213.0,93211.0,0.05374]
[1735723468097,0.003,93213.0,93211.0,0.05374]
[1735723468309,0.005,93213.0,93211.0,0.05374]
[1735723468498,0.002,93213.0,93211.0,0.05374]
[1735723469295,0.00161005,93218.0,93211.0,0.05374]
[1735723469497,0.053727,93234.0,93222.0,0.053734]
[1735723469697,0.053727,93234.0,93223.0,0.053733]
[1735723470696,0.053727,93234.0,93226.0,0.053731]
[1735723471005,0.3648,93231.0,93227.0,0.03]
[1735723471799,0.3608,93231.0,93227.0,0.03]
[1735723472000,0.3668,93231.0,93227.0,0.03]
[1735723472906,0.3698,93231.0,93227.0,0.03]
[1735723473695,0.009,93231.0,93227.0,0.03]
[1735723473905,0.006,93231.0,93227.0,0.03]
[1735723474207,0.053731,93229.0,93212.0,0.05374]
[1735723474412,0.053734,93222.0,93213.0,0.0313]
[1735723474908,0.053735,93221.0,93213.0,0.0313]
[1735723475098,0.12027743,93221.0,93213.0,0.0313]
[1735723475301,0.12027743,93224.0,93200.0,0.11049249]
[1735723475501,0.053741,93210.0,93200.0,0.11049249]
[1735723475696,0.053741,93210.0,93209.0,0.03044938]
[1735723475902,0.17324611,93210.0,93209.0,4.938e-05]
[1735723476408,0.19260968,93210.0,93209.0,4.938e-05]
[1735723477300,0.17324611,93210.0,93209.0,4.938e-05]
[1735723477608,0.053749,93197.0,93190.0,0.47129249]
[1735723478014,0.11748808,93196.0,93186.0,0.053755]
[1735723478609,0.05375,93195.0,93186.0,0.053755]
[1735723479008,0.05375,93195.0,93190.0,0.004]
[1735723479703,0.05475,93195.0,93186.0,0.060755]
[1735723480406,0.05475,93195.0,93186.0,0.002]
[1735723480407,0.053754,93188.0,93186.0,0.002]
[1735723480605,0.049754,93188.0,93186.0,0.002]
[1735723481300,0.049754,93188.0,93182.0,0.053757]
[1735723482013,0.049754,93188.0,93181.0,0.3608]
[1735723482014,0.053755,93186.0,93181.0,0.3608]
[1735723482512,0.12275796,93185.0,93181.0,0.3608]
[1735723482712,0.11875796,93185.0,93181.0,0.3608]
[1735723483317,0.11875796,93185.0,93184.0,0.0353]
[1735723484914,0.11975796,93185.0,93184.0,0.0353]
[1735723485806,0.001,93185.0,93184.0,0.0343]
[1735723486509,0.11891732,93185.0,93184.0,0.0343]
[1735723486815,0.001,93185.0,93184.0,0.0343]
[1735723505439,0.11706799,93185.0,93184.0,0.0343]
[1735723505642,0.13667443,93185.0,93184.0,0.0343]
[1735723506143,0.11706799,93185.0,93184.0,0.0343]
[1735723509146,0.053762,93174.0,93173.0,0.3608]
[1735723509447,0.17575083,93174.0,93173.0,0.3608]
[1735723509744,0.19534631,93174.0,93173.0,0.3608]
[1735723510238,0.80238431,93174.0,93140.0,0.3608]
[1735723510438,0.3608,93152.0,93140.0,0.3608]
[1735723510644,0.3608,93152.0,93130.0,0.0301]
[1735723510645,0.053779,93144.0,93142.0,0.25802441]
[1735723511034,0.11864565,93143.0,93142.0,0.25802441]
[1735723511345,0.05517501,93151.0,93143.0,0.053779]
[1735723511540,0.553775,93151.0,93143.0,0.053779]
[1735723511743,0.13792782,93150.0,93143.0,0.053779]
[1735723511943,0.13792782,93150.0,93142.0,0.25802441]
[1735723511944,0.3618,93152.0,93144.0,0.053779]
[1735723512139,0.01829086,93151.0,93145.0,0.0304]
[1735723512345,0.053776,93149.0,93146.0,0.053778]
[1735723512538,0.053777,93147.0,93146.0,0.0318]
[1735723513045,0.17680149,93147.0,93146.0,0.0318]
[1735723513634,0.053779,93145.0,93143.0,0.053779]
[1735723514438,0.09148468,93144.0,93143.0,0.053779]
[1735723515337,0.11412575,93145.0,93143.0,0.353579]
[1735723515653,0.2539898,93153.0,93152.0,0.053775]
[1735723515839,0.2539898,93153.0,93152.0,1.914575]
[1735723516442,0.2539898,93153.0,93152.0,0.414575]
[1735723516850,0.053765,93169.0,93157.0,0.053771]
[1735723517151,0.053766,93168.0,93160.0,0.05377]
[1735723517538,0.3077518,93174.0,93164.0,0.053767]
[1735723517853,0.3077518,93174.0,93173.0,0.053762]
[1735723517854,0.2539898,93174.0,93173.0,0.053762]
[1735723518148,0.2539898,93174.0,93164.0,0.3608]
[1735723518149,0.2539898,93176.0,93174.0,0.053761]
[1735723519247,0.36224,93184.0,93166.0,0.053766]
[1735723519547,0.36224,93184.0,93177.0,0.05376]
[1735723519548,0.3608,93184.0,93177.0,0.05376]
[1735723520648,0.3608,93184.0,93179.0,0.053759]
[1735723520852,0.3608,93184.0,93181.0,0.053758]
[1735723521245,0.09665976,93183.0,93181.0,0.053758]
[1735723522239,0.3648,93184.0,93181.0,0.053758]
[1735723522735,0.004,93183.0,93181.0,0.053758]
[1735723523537,0.002,93183.0,93181.0,0.053758]
[1735723524654,0.3628,93184.0,93173.0,0.47129249]
[1735723524848,0.3648,93184.0,93182.0,0.053757]
[1735723525151,0.002,93183.0,93182.0,0.053757]
[1735723525351,0.004,93183.0,93182.0,0.053757]
[1735723525853,0.3608,93195.0,93173.0,0.47129249]
[1735723526152,0.003,93184.0,93180.0,0.11049249]
[1735723526342,0.003,93184.0,93174.0,0.11049249]
[1735723526740,0.3608,93195.0,93190.0,0.053752]
[1735723527048,0.3608,93195.0,93183.0,0.053757]
[1735723527356,0.16415033,93195.0,93185.0,0.3608]
[1735723527548,0.16415033,93195.0,93186.0,0.053755]
[1735723528850,0.16815033,93195.0,93186.0,0.053755]
[1735723529051,0.0966839,93194.0,93186.0,0.053755]
[1735723529250,0.0966839,93194.0,93185.0,0.3608]
[1735723529546,0.0966839,93194.0,93190.0,0.053752]
[1735723530140,0.0966839,93193.0,93185.0,0.3608]
[1735723530449,0.0966839,93193.0,93192.0,0.053751]
[1735723531047,0.1504339,93194.0,93185.0,0.3608]
[1735723531357,0.053751,93193.0,93186.0,0.053754]
[1735723531855,0.060751,93193.0,93187.0,0.053754]
[1735723532047,0.065751,93193.0,93187.0,0.053754]
[1735723532552,0.22284176,93188.0,93187.0,0.053754]
[1735723534754,0.22684176,93188.0,93187.0,0.053754]
[1735723535345,0.23084176,93188.0,93187.0,0.053754]
[1735723535845,0.32748768,93188.0,93187.0,0.053754]
[1735723536046,0.34621026,93188.0,93187.0,0.053754]
[1735723536646,0.32748768,93188.0,93187.0,0.053754]
[1735723537144,0.23084176,93188.0,93187.0,0.053754]
[1735723537846,0.008,93188.0,93187.0,0.053754]
[1735723538748,0.47683156,93198.0,93185.0,0.0313]
[1735723538957,0.22284176,93198.0,93197.0,0.414549]
[1735723539653,0.22284176,93198.0,93197.0,0.053749]
[1735723540245,0.3608,93205.0,93199.0,0.053747]
[1735723540453,0.01871226,93204.0,93199.0,0.053747]
[1735723540643,0.3608,93203.0,93184.0,0.0644]
[1735723540843,0.3608,93194.0,93185.0,0.053755]
[1735723541049,0.009,93198.0,93197.0,0.001]
[1735723541257,0.012,93198.0,93197.0,0.001]
[1735723541555,0.003,93198.0,93191.0,0.053752]
[1735723541749,0.3608,93192.0,93191.0,0.053752]
[1735723541950,0.37983885,93192.0,93191.0,0.053752]
[1735723542645,0.01903885,93192.0,93191.0,0.053752]
[1735723542850,0.10467356,93198.0,93184.0,0.0323]
[1735723542851,0.01903885,93197.0,93193.0,0.053751]
[1735723543248,0.3608,93194.0,93193.0,0.053751]
[1735723543454,0.01903885,93194.0,93193.0,0.053751]
[1735723543647,0.3608,93194.0,93193.0,0.053751]
[1735723543851,0.37983885,93194.0,93193.0,0.053751]
[1735723544247,0.58755698,93194.0,93193.0,0.053751]
[1735723544450,0.58755698,93194.0,93193.0,0.054751]
[1735723544451,0.59455698,93194.0,93193.0,0.054751]
[1735723545764,0.59855698,93194.0,93193.0,0.054751]
[1735723546060,0.23775698,93194.0,93193.0,0.054751]
[1735723546960,0.21871813,93194.0,93193.0,0.054751]
[1735723547753,0.23783821,93194.0,93193.0,0.054751]
[1735723549757,0.57951813,93194.0,93193.0,0.001]
[1735723549956,0.21871813,93194.0,93193.0,0.001]
[1735723550870,0.59901866,93194.0,93193.0,0.001]
[1735723551254,0.46892317,93194.0,93193.0,0.001]
[1735723552757,0.488408,93194.0,93193.0,0.001]
[1735723553264,0.127608,93194.0,93193.0,0.001]
[1735723554156,0.488408,93194.0,93193.0,0.001]
[1735723556664,0.59968539,93194.0,93193.0,0.001]
[1735723557663,0.053751,93193.0,93172.0,0.053763]
[1735723557871,0.05376,93177.0,93171.0,0.053763]
[1735723558063,0.3608,93183.0,93165.0,0.00160988]
[1735723558064,0.086261,93176.0,93165.0,0.00160988]
[1735723558264,0.01948483,93175.0,93171.0,0.053763]
[1735723558467,0.053762,93174.0,93171.0,0.053763]
[1735723559069,0.053762,93174.0,93172.0,0.053763]
[1735723559860,0.11901973,93173.0,93165.0,0.00160988]
[1735723560067,0.053764,93170.0,93165.0,0.05537688]
[1735723560266,0.053764,93170.0,93167.0,0.053766]
[1735723560567,0.053764,93170.0,93168.0,0.053765]
[1735723560868,0.20840056,93173.0,93172.0,0.003]
[1735723561375,0.05376,93178.0,93174.0,0.053761]
[1735723561561,0.05376,93178.0,93165.0,0.00260988]
[1735723561562,0.05376,93178.0,93175.0,0.053761]
[1735723562271,0.20900587,93177.0,93175.0,0.053761]
[1735723563769,0.20900587,93176.0,93175.0,0.053761]
[1735723564069,0.053762,93174.0,93169.0,0.053765]
[1735723564274,0.053763,93173.0,93169.0,0.053765]
[1735723564468,0.053763,93172.0,93170.0,0.053764]
[1735723565465,0.20900587,93176.0,93165.0,0.00160988]
[1735723565466,0.053765,93169.0,93165.0,0.00160988]
[1735723565673,0.031,93168.0,93165.0,0.00160988]
[1735723566474,0.053766,93167.0,93165.0,0.00160988]
[1735723567782,0.5,93157.0,93148.0,0.3608]
[1735723568072,0.053776,93149.0,93148.0,0.3608]
[1735723568479,0.16654535,93149.0,93148.0,0.3608]
[1735723570174,0.16654535,93149.0,93148.0,0.3628]
[1735723570570,0.16754535,93149.0,93148.0,0.002]
[1735723570766,0.053779,93144.0,93143.0,0.05378]
[1735723571779,0.053779,93144.0,93134.0,0.0324]
[1735723571780,0.05378,93143.0,93134.0,0.0324]
[1735723572283,0.053783,93139.0,93134.0,0.0324]
[1735723572485,0.053783,93139.0,93135.0,0.053784]
[1735723572683,0.12030862,93138.0,93135.0,0.053784]
[1735723573272,0.12030862,93138.0,93133.0,0.12]
[1735723573480,0.0329,93137.0,93133.0,0.12]
[1735723573879,0.053785,93134.0,93133.0,0.12]
[1735723574186,0.052785,93134.0,93133.0,0.12]
[1735723574380,0.16811224,93134.0,93133.0,0.12]
[1735723574781,0.053787,93131.0,93121.0,0.053792]
[1735723574976,0.05379,93126.0,93121.0,0.053792]
[1735723575176,0.05379,93125.0,93121.0,0.053792]
[1735723575476,0.17823318,93125.0,93121.0,0.053792]
[1735723575671,0.05379,93125.0,93121.0,0.053792]
[1735723576074,0.5,93136.0,93124.0,0.3608]
[1735723576387,0.001,93137.0,93135.0,0.053784]
[1735723576679,0.5,93152.0,93139.0,0.053782]
[1735723576874,0.5,93145.0,93133.0,0.001]
[1735723577070,0.1226132,93151.0,93134.0,0.0321]
[1735723577291,0.3608,93156.0,93144.0,0.053779]
[1735723577475,0.1226132,93152.0,93144.0,0.053779]
[1735723577676,0.3608,93156.0,93144.0,0.053779]
[1735723578077,0.001,93145.0,93144.0,0.053779]
[1735723579782,0.003,93154.0,93148.0,0.053777]
[1735723579990,0.003,93154.0,93143.0,0.3608]
[1735723579991,0.003,93154.0,93152.0,0.053774]
[1735723580587,0.3608,93156.0,93154.0,0.053773]
[1735723581887,0.053777,93148.0,93135.0,0.053784]
[1735723582089,0.053779,93145.0,93130.0,0.14109249]
[1735723582288,0.053784,93136.0,93130.0,0.0306]
[1735723582491,0.053784,93136.0,93123.0,0.3608]
[1735723583089,0.3608,93140.0,93123.0,0.3608]
[1735723583090,0.3608,93130.0,93123.0,0.3608]
[1735723583285,0.914587,93130.0,93123.0,0.3608]
[1735723583478,0.906587,93130.0,93123.0,0.3608]
[1735723583883,0.406587,93130.0,93123.0,0.3608]
[1735723584084,0.406587,93130.0,93129.0,0.00561055]
[1735723584887,0.906587,93130.0,93129.0,0.00561055]
[1735723585394,1.02542176,93130.0,93129.0,0.00561055]
[1735723585695,1.12257014,93130.0,93129.0,0.00161055]
[1735723585893,0.053791,93124.0,93094.0,0.053808]
[1735723586096,0.053804,93101.0,93080.0,0.11049249]
[1735723586693,0.3608,93104.0,93100.0,0.153805]
[1735723586891,0.053803,93103.0,93100.0,0.1]
[1735723587198,0.053804,93101.0,93100.0,0.1]
[1735723587385,0.054804,93101.0,93100.0,0.1]
[1735723587989,0.17637558,93101.0,93100.0,0.1]
[1735723588287,0.17637558,93101.0,93073.0,0.3608]
[1735723588288,0.47637558,93101.0,93053.0,0.3608]
[1735723588486,0.053827,93062.0,93053.0,0.3608]
[1735723588692,0.053831,93055.0,93053.0,0.3608]
[1735723588993,0.3608,93069.0,93045.0,0.3608]
[1735723588994,0.12415621,93054.0,93045.0,0.3608]
[1735723589198,0.12415621,93054.0,93053.0,0.3608]
[1735723589492,0.12415621,93068.0,93053.0,0.3608]
[1735723589707,0.001,93062.0,93053.0,0.3608]
[1735723589886,0.001,93062.0,93054.0,0.3608]
[1735723590088,0.001,93062.0,93060.0,0.053828]
[1735723590291,0.001,93062.0,93014.0,0.19220109]
[1735723590293,0.01,93015.0,93014.0,0.19220109]
[1735723590507,0.01,93015.0,93002.0,0.32033364]
[1735723590508,0.063861,93003.0,93002.0,0.13880934]
[1735723590687,0.01,92981.0,92980.0,0.053874]
[1735723590988,0.3708,92981.0,92980.0,0.053874]
[1735723591197,0.11296697,93003.0,92980.0,2.214674]
[1735723591388,0.3608,93032.0,92996.0,0.3608]
[1735723591588,0.3608,93044.0,93023.0,0.3608]
[1735723591589,0.8608,93044.0,93023.0,0.3608]
[1735723591991,0.3608,93034.0,93020.0,0.11049249]
[1735723592202,0.00161472,93053.0,93020.0,0.11049249]
[1735723592203,0.5,93073.0,93033.0,0.3608]
[1735723592399,0.3608,93084.0,93063.0,0.11049249]
[1735723592400,0.3608,93075.0,93063.0,0.11049249]
[1735723592702,0.11248956,93083.0,93063.0,0.11049249]
[1735723592888,0.61248956,93083.0,93063.0,0.11049249]
[1735723593084,0.3608,93084.0,93063.0,0.11049249]
[1735723593085,0.15784489,93065.0,93063.0,0.11049249]
[1735723593288,0.15784489,93065.0,93063.0,0.353826]
[1735723593488,0.11177121,93082.0,93063.0,0.3]
[1735723593683,0.3608,93109.0,93081.0,0.3608]
[1735723593898,0.3608,93109.0,93085.0,0.053813]
[1735723594397,0.3608,93109.0,93085.0,0.353813]
[1735723594696,0.3608,93109.0,93085.0,0.12764881]
[1735723594885,0.3608,93109.0,93081.0,0.3608]
[1735723594886,0.3608,93092.0,93081.0,0.3608]
[1735723595087,0.27235119,93100.0,93077.0,0.3608]
[1735723595088,0.12050457,93099.0,93077.0,0.3608]
[1735723595298,0.27235119,93100.0,93077.0,0.3608]
[1735723595599,0.002,93082.0,93077.0,0.3608]
[1735723596193,0.09477192,93086.0,93077.0,0.3618]
[1735723597198,0.001,93082.0,93077.0,0.3618]
[1735723598103,0.001,93082.0,93077.0,0.3608]
[1735723598302,0.001,93082.0,93077.0,0.3618]
[1735723598498,0.053817,93078.0,93077.0,0.001]
[1735723598893,0.22616819,93078.0,93077.0,0.001]
[1735723599093,0.05382,93075.0,93055.0,0.05383]
[1735723599391,0.05382,93075.0,93060.0,0.16654155]
[1735723599600,0.22617119,93075.0,93060.0,0.16654155]
[1735723599991,0.12636257,93067.0,93060.0,0.16654155]
[1735723600195,0.12636257,93067.0,93060.0,0.22036855]
[1735723600395,0.12636257,93067.0,93065.0,0.053825]
[1735723600809,0.007,93078.0,93073.0,0.05382]
[1735723601102,0.007,93078.0,93068.0,0.16654155]
[1735723601403,0.007,93078.0,93077.0,0.053818]
[1735723601404,0.012,93078.0,93077.0,0.053818]
[1735723601605,0.012,93078.0,93068.0,0.46654155]
[1735723601998,0.3608,93105.0,93093.0,0.053808]
[1735723602200,0.3608,93105.0,93077.0,1.8608]
[1735723602201,0.3608,93105.0,93097.0,0.414606]
[1735723602412,0.3608,93105.0,93099.0,0.053805]
[1735723604199,0.104,93100.0,93088.0,0.3608]
[1735723604390,0.28219912,93100.0,93088.0,0.3608]
[1735723604806,0.108,93100.0,93090.0,0.05381]
[1735723605000,0.28619912,93100.0,93090.0,0.05381]
[1735723605393,0.28219912,93100.0,93090.0,0.05381]
[1735723606400,0.27919912,93100.0,93090.0,0.05381]
[1735723606705,0.3608,93094.0,93088.0,0.001]
[1735723606912,0.3608,93094.0,93081.0,0.053815]
[1735723607117,0.3608,93094.0,93080.0,0.52734155]
[1735723607118,0.47359739,93094.0,93092.0,0.053809]
[1735723607408,0.3608,93094.0,93092.0,0.053809]
[1735723608900,0.3618,93094.0,93092.0,0.053809]
[1735723609302,0.3618,93094.0,93092.0,0.353809]
[1735723609509,0.3608,93094.0,93092.0,0.353809]
[1735723609715,0.3608,93094.0,93092.0,0.354809]
[1735723609902,0.001,93094.0,93092.0,0.306]
[1735723610106,0.3608,93114.0,93093.0,1.5]
[1735723610300,0.3608,93114.0,93104.0,0.16654155]
[1735723610506,0.22336448,93112.0,93110.0,0.053798]
[1735723611301,0.053805,93099.0,93093.0,0.001]
[1735723611501,0.3608,93095.0,93093.0,0.001]
[1735723612211,0.3608,93095.0,93093.0,0.053808]
[1735723613419,0.3608,93095.0,93081.0,1.5]
[1735723613420,0.47359739,93095.0,93073.0,0.36241138]
[1735723613609,0.3608,93082.0,93076.0,0.053818]
[1735723613910,0.3608,93082.0,93078.0,0.053817]
[1735723614712,0.3608,93082.0,93073.0,0.37041138]
[1735723614916,0.3608,93082.0,93081.0,0.053816]
[1735723615117,0.3608,93082.0,93073.0,0.37041138]
[1735723615118,0.05234976,93081.0,93073.0,0.37041138]
[1735723615316,0.05234976,93081.0,93080.0,0.053816]
[1735723615506,0.05228435,93081.0,93080.0,0.053816]
[1735723616717,0.001,93082.0,93080.0,0.053816]
[1735723617021,0.3608,93087.0,93086.0,0.053813]
[1735723617813,0.19045357,93093.0,93091.0,0.053809]
[1735723618226,0.3608,93095.0,93091.0,0.053809]
[1735723618918,0.3608,93095.0,93080.0,0.005]
[1735723618919,0.053815,93082.0,93080.0,0.005]
[1735723619110,0.3608,93092.0,93051.0,0.00161214]
[1735723619111,0.4259,93081.0,93051.0,0.00161214]
[1735723619307,0.3608,93052.0,93051.0,0.00161214]
[1735723619820,0.46198601,93052.0,93051.0,0.00161214]
[1735723620017,0.3558,93052.0,93051.0,0.00161214]
[1735723620217,0.48453968,93052.0,93051.0,0.00161214]
[1735723620421,0.48853968,93052.0,93051.0,0.00161214]
[1735723620619,0.13273968,93052.0,93051.0,0.05544514]
[1735723621216,0.13273968,93052.0,93051.0,0.00161214]
[1735723621217,0.29275769,93052.0,93051.0,0.00161214]
[1735723621421,0.29275769,93052.0,93018.0,0.3608]
[1735723621422,0.23892569,93052.0,93018.0,0.3608]
[1735723621615,0.3608,93039.0,93018.0,0.3608]
[1735723621819,0.3608,93039.0,93019.0,1.5]
[1735723622020,0.3608,93030.0,93026.0,0.053847]
[1735723622616,0.3608,93030.0,93020.0,0.16654155]
[1735723622817,0.3608,93039.0,93020.0,0.16654155]
[1735723623120,0.19077658,93021.0,93020.0,0.053851]
[1735723623721,0.71161359,93021.0,93019.0,0.004]
[1735723623923,0.053854,93016.0,93003.0,0.053861]
[1735723624222,0.3608,93004.0,93003.0,0.053861]
[1735723624411,0.10618601,93016.0,93000.0,0.1]
[1735723624617,0.10318601,93016.0,93008.0,0.053858]
[1735723624821,0.3618,93021.0,93014.0,0.053854]
[1735723625122,0.001,93021.0,93016.0,0.3608]
[1735723625323,0.001,93021.0,93020.0,0.053851]
[1735723625820,0.001,93021.0,93016.0,0.3608]
[1735723626025,0.001,93021.0,93000.0,0.1]
[1735723626026,0.55157658,93017.0,93005.0,0.053859]
[1735723626321,0.3568,93008.0,93000.0,0.1]
[1735723627215,0.0305,93015.0,93000.0,0.1]
[1735723627418,0.13368601,93015.0,93008.0,0.053858]
[1735723627812,0.13368601,93015.0,93012.0,0.053855]
[1735723628219,0.3608,93013.0,93000.0,0.1]
[1735723628526,0.3608,93013.0,92988.0,0.053869]
[1735723628527,0.3608,93001.0,92988.0,0.053869]
[1735723628822,0.3608,93001.0,92990.0,0.053868]
[1735723629017,0.36237361,93001.0,92994.0,0.053866]
[1735723629328,0.00157361,93001.0,92999.0,0.053863]
[1735723629523,0.004,93013.0,93003.0,0.05386]
[1735723629826,0.004,93013.0,93011.0,0.053856]
[1735723630331,0.004,93013.0,93012.0,0.3608]
[1735723630726,0.004,93013.0,93012.0,1.8608]
[1735723630926,0.012,93013.0,93012.0,1.8608]
[1735723631126,0.3608,93032.0,93031.0,0.053844]
[1735723631323,0.0947156,93036.0,93023.0,0.3608]
[1735723631718,0.0947156,93036.0,93035.0,0.053842]
[1735723632225,0.3608,93048.0,93032.0,0.3608]
[1735723632426,0.3608,93048.0,93046.0,0.053836]
[1735723632629,0.0947156,93051.0,93050.0,0.053833]
[1735723632828,0.0947156,93051.0,93050.0,0.414633]
[1735723633026,0.50859376,93064.0,93063.0,0.053826]
[1735723633222,0.50859376,93064.0,93063.0,1.914626]
[1735723633419,0.17211912,93071.0,93063.0,2.214626]
[1735723633718,0.17211912,93071.0,93070.0,0.053822]
[1735723634129,0.3608,93076.0,93075.0,0.053819]
[1735723634434,0.20491912,93099.0,93089.0,0.05381]
[1735723634435,0.3608,93096.0,93089.0,0.05381]
[1735723634733,0.3608,93096.0,93080.0,0.16654155]
[1735723635031,0.36237361,93096.0,93088.0,0.053811]
[1735723635228,0.36237361,93096.0,93089.0,0.053811]
[1735723636031,0.36737361,93096.0,93080.0,0.16654155]
[1735723636432,0.3608,93088.0,93080.0,0.16654155]
[1735723636633,0.3608,93088.0,93086.0,0.053812]
[1735723637327,0.3608,93088.0,93080.0,0.16654155]
[1735723637328,0.007,93096.0,93094.0,0.053808]
[1735723637525,0.00457361,93096.0,93094.0,0.053808]
[1735723638231,0.00157361,93096.0,93094.0,0.053808]
[1735723638741,0.3608,93098.0,93097.0,0.053806]
[1735723639120,0.1,93100.0,93099.0,0.053805]
[1735723640734,0.1,93100.0,93099.0,1.553805]
[1735723640941,0.105,93100.0,93099.0,1.554805]
[1735723641739,0.3608,93125.0,93124.0,0.053791]
[1735723642330,0.36237361,93125.0,93109.0,0.3608]
[1735723642529,0.3608,93110.0,93105.0,0.05541202]
[1735723642827,0.3608,93110.0,93108.0,0.0538]
[1735723643135,0.3608,93116.0,93105.0,0.00161102]
[1735723643325,0.3608,93116.0,93115.0,0.053796]
[1735723644428,0.36237361,93116.0,93115.0,0.053796]